Cogmind - Beta 11 X8 @@@ ROGUE MODE // 2021.11.28 @ 00:59:15 Player: Runia Result: Destroyed by G-47 Trooper with Particle Gun Performance ------------- Evolutions (0) 0 Regions Visited (1) 200 Robots Destroyed (22) 110 Value Destroyed (495) 495 Prototype IDs (5) 100 Alien Tech Used (0) 0 Bonus (0) 0 TOTAL SCORE: 905 Bonus ------- None Cogmind --------- Core Integrity 0/250 Matter 279/300 Energy 123/125 System Corruption 0% Temperature Cool (9) Movement Treading (160) Location -10/Materials Parts ------- > --- POWER (1) -------- Light Ion Engine > --- PROPULSION (2) --- Light Treads Light Treads > --- UTILITY (2) ------ Medium Storage Unit Weight Redist. System > --- WEAPON (2) ------- Assault Rifle Light Assault Rifle > --- INVENTORY (10) --- Aluminum Leg Medium Matter Pod (0) Small Laser Beam Cannon Light Assault Rifle Peak State ------------ > --- POWER ------------ Light Ion Engine > --- PROPULSION ------- Wheel Compact Wheel > --- UTILITY ---------- Medium Storage Unit Weight Redist. System > --- WEAPON ----------- Assault Rifle Light Assault Rifle > --- INVENTORY -------- Light Treads Light Treads Small Laser Small Laser Assault Rifle Light Assault Rifle [Rating: 8] Favorites ----------- Power Light Ion Engine Engine Light Ion Engine Propulsion Light Treads Treads Light Treads Leg Aluminum Leg Wheel Wheel Utility Small Storage Unit Device Weight Redist. System Storage Small Storage Unit Weapon Light Assault Rifle Energy Gun Small Laser Ballistic Gun Light Assault Rifle Build | -11 -10 ------- Run | Scr Mat Slots Evolved . | . . Power . | . . Propulsion . | . . Utility . | . . Weapon . | . . Parts Attached 14 | 2 12 Power 3 | . 3 Engine 3 | . 3 Core . | . . Reactor . | . . Propulsion 6 | 2 4 Treads 4 | 2 2 Leg . | . . Wheel 2 | . 2 Hover . | . . Flight . | . . Utility 2 | . 2 Device 1 | . 1 Storage 1 | . 1 Processor . | . . Hackware . | . . Protection . | . . Artifact . | . . Weapon 3 | . 3 Energy Gun . | . . Energy Cannon . | . . Ballistic Gun 3 | . 3 Ballistic Cannon . | . . Launcher . | . . Special Weapon . | . . Impact Weapon . | . . Slashing Weapon . | . . Piercing Weapon . | . . Special Melee Weapon . | . . Unidentified Prototypes . | . . Parts Lost 4 | . 4 Power 2 | . 2 Propulsion 2 | . 2 Utility . | . . Weapon . | . . Highest Loss Streak 4 | . 4 Average Slot Usage (%) 81 | . 81 Engine 12 | . 12 Treads 16 | . 16 Wheel 6 | . 6 Device 2 | . 2 Storage 14 | . 14 Energy Gun 7 | . 7 Ballistic Gun 21 | . 21 Naked Turns . | . . Heaviest Build 16 | 10 16 Greatest Support 46 | 40 46 Greatest Overweight (x) 3 | . 3 Average Overweight (x) . | . . Largest Inventory Capacity 10 | 8 10 Average Capacity 8 | 8 8 Most Carried 6 | 6 6 Average Carried 3 | 4 3 Final Capacity 10 | 8 10 Final Carried 5 | 2 5 Class Distribution -------------------- 73% | Mutant 26% | Scavenger-Mutant Dominant Class ---------------- Mutant | -10/Materials Resources | -11 -10 ----------- Run | Scr Mat Matter Collected 576 | 167 409 Remotely . | . . Salvage Created 884 | . 884 Parts 48 | . 48 Haulers Intercepted 2 | . 2 Recyclers Shooed 2 | . 2 Parts Field Recycled . | . . Retrieved Matter . | . . Parts Self-Destructed . | . . Prevented . | . . Kills | -11 -10 ------- Run | Scr Mat Combat Hostiles Destroyed 15 | . 15 Guns 15 | . 15 Classes Destroyed 7 | . 7 Builder 1 | . 1 Tunneler 1 | . 1 Hauler 2 | . 2 Recycler 2 | . 2 Watcher 1 | . 1 Swarmer 3 | . 3 Grunt 12 | . 12 Best Kill Streak 4 | . 4 Combat Bots Only 4 | . 4 Max Kills in Single Turn 1 | . 1 Gunslinging . | . . Exploded . | . . Melee . | . . Uniques/NPCs Destroyed . | . . Combat | -11 -10 -------- Run | Scr Mat Damage Taken 899 | . 899 Core 252 | . 252 Absorbed by Shields . | . . Core Remaining (%) 100 | 100 . Volleys Fired 88 | . 88 Largest 2 | . 2 Hottest 60 | . 60 Shots Fired 176 | . 176 Gun 176 | . 176 Cannon . | . . Launcher . | . . Special . | . . Kinetic 135 | . 135 Thermal 41 | . 41 Explosive . | . . Electromagnetic . | . . Robot Hit Streak 12 | . 12 Robot Miss Streak 4 | . 4 Penetration Max . | . . Secondary Targets 1 | . 1 Max Gunslinging Chain 1 | . 1 Shots Hit Robots 124 | . 124 Core Hits 43 | . 43 Critical Kills . | . . Critical Parts Destroyed . | . . Critical Strikes . | . . Melee Attacks . | . . Impact . | . . Slashing . | . . Piercing . | . . Sneak Attacks . | . . Combat Hostiles . | . . Follow-up Attacks . | . . Damage Inflicted 1337 | . 1337 Guns 1337 | . 1337 Cannons . | . . Explosions . | . . Melee . | . . Ramming . | . . Kinetic 1052 | . 1052 Thermal 285 | . 285 Explosive . | . . Electromagnetic . | . . Impact . | . . Slashing . | . . Piercing . | . . Highest Corruption . | . . Average Corruption . | . . Corruption Purged . | . . Overload Shots . | . . Overflow Damage . | . . Projectiles . | . . Explosions . | . . Melee . | . . Knockbacks . | . . Impact . | . . Kinetic . | . . Secondary . | . . Self-Inflicted Damage . | . . Shots . | . . Rammed . | . . Targets Rammed . | . . Kicked . | . . Crushed . | . . Highest Temperature 210 | . 210 Average Temperature 53 | . 53 Received Heat Transfer 516 | . 516 Effects 2 | . 2 Interference 2 | . 2 Siege Activations . | . . Robots Corrupted . | . . Combat Hostiles . | . . Parts Fried . | . . Impact Corruptions . | . . Robots Melted . | . . Combat Hostiles . | . . Parts Melted 1 | . 1 Heat Transferred 650 | . 650 Parts Sabotaged . | . . Parts Stolen . | . . Parts Stripped . | . . Power Chain Reactions . | . . Missiles Intercepted . | . . Alert | -11 -10 ------- Run | Scr Mat Peak Influence 312 | . 312 Initial . | . . Average 149 | . 150 Maximum Alert Level 1 | . 1 Low Security (%) 75 | 100 75 Level 1 24 | . 24 Level 2 . | . . Level 3 . | . . Level 4 . | . . Level 5 . | . . High Security . | . . Max Security . | . . Squads Dispatched 5 | . 5 Investigation 3 | . 3 Extermination . | . . Reinforcement 2 | . 2 Assault . | . . Garrison . | . . Intercept . | . . Construction Impeded . | . . Haulers Reinforced . | . . Active Scanning Responses . | . . Cargo Convoy Interrupts . | . . Stealth | -11 -10 --------- Run | Scr Mat Distress Signals 1 | . 1 Communications Jammed . | . . Distress Signals . | . . Times Spotted 28 | . 28 Peak Tracking Total 5 | . 5 Tactical Retreats 1 | . 1 Traps | -11 -10 ------- Run | Scr Mat Traps Triggered 2 | . 2 Indirectly . | . . Trap Hack Attempts . | . . Triggered . | . . Disarmed . | . . Reprogrammed . | . . Reused . | . . Traps Extracted . | . . Installed . | . . Triggered . | . . Machines | -11 -10 ---------- Run | Scr Mat Machines Disabled . | . . Max in Single Turn . | . . Machines Sabotaged . | . . Garrisons Compromised . | . . Overloaded Fab Kills . | . . Hacking | -11 -10 --------- Run | Scr Mat Machines Accessed 4 | . 4 Terminals 3 | . 3 Fabricators . | . . Repair Stations . | . . Recycling Units 1 | . 1 Scanalyzers . | . . Garrison Access . | . . Total Hacks 9 | . 9 Successful 6 | . 6 Failed 3 | . 3 Catastrophic . | . . Database Lockouts . | . . Manual 3 | . 3 Terminals 8 | . 8 Fabricators . | . . Repair Stations . | . . Recycling Units 1 | . 1 Scanalyzers . | . . Garrison Access . | . . Terminal Hacks 5 | . 5 Robot Analysis 1 | . 1 Prototype ID Bank 3 | . 3 Terminal Index 1 | . 1 Fabricator Hacks . | . . Repair Station Hacks . | . . Recycling Unit Hacks . | . . Scanalyzer . | . . Garrison Access Hacks . | . . Unauthorized Hacks 1 | . 1 Terminals . | . . Fabricators . | . . Repair Stations . | . . Recycling Units 1 | . 1 Tunnel 1 | . 1 Scanalyzers . | . . Garrison Access . | . . Data Cores Recovered . | . . Used . | . . Hacking Detections 3 | . 3 Full Trace Events . | . . Feedback Events . | . . Feedback Blocked . | . . Robot Schematics Acquired . | . . Robots Built . | . . Authchips . | . . Time . | . . Total Robot Build Rating . | . . Part Schematics Acquired . | . . Parts Built . | . . Authchips . | . . Time . | . . Total Part Build Rating . | . . Parts Repaired . | . . Time . | . . Parts Recycled . | . . Recycled Matter . | . . Retrieved Matter . | . . Retrieved Components . | . . Parts Scanalyzed . | . . Part Schematics Acquired . | . . Parts Damaged . | . . Bothacking | -11 -10 ------------ Run | Scr Mat Used RIF Installer . | . . Robots Hacked . | . . Non-combat . | . . Combat . | . . Robot Hacks Applied . | . . Relay Couplers Released . | . . Fabnet Peak Effective % . | . . Robots Rewired . | . . Allies Hacked . | . . Hacks Repelled . | . . Allies | -11 -10 -------- Run | Scr Mat Total Allies . | . . Largest Group . | . . Highest-Rated Group . | . . Highest-Rated Ally . | . . Total Orders . | . . Ally Attacks . | . . Total Damage . | . . Kills . | . . Allies Corrupted . | . . Allies Melted . | . . Intel | -11 -10 ------- Run | Scr Mat Robot Analysis Total 1 | . 1 Derelict Logs Recovered . | . . Drone Launches . | . . Drone Recoveries . | . . Exploration | -11 -10 ------------- Run | Scr Mat Turns Passed 699 | 5 694 Spaces Moved 290 | 1 289 Core 14 | . 14 Treads 138 | 1 137 Legs . | . . Wheels 138 | . 138 Hover . | . . Flight . | . . Fastest Speed 90 | 160 90 Average Speed 128 | 160 127 Slowest Speed 200 | 160 200 Overloaded Moves . | . . Propulsion Burnouts . | . . Robots Hopped . | . . Cave-ins Triggered . | . . Exploration Rate (%) 28 | 2 55 Regions Visited 1 Branch Regions . Pre-discovered Areas 1 | . 1 Known Exits Taken . | . . Unknown Exits Taken 1 | 1 . Scrap Searched . | . . Spaces Dug . | . . Terrain Destroyed . | . . Melee . | . . Projectile . | . . AOE . | . . Terrain Rammed . | . . Walls Destroyed . | . . Machines Disabled . | . . Actions | -11 -10 --------- Run | Scr Mat Total 456 | 6 450 Wait 46 | . 46 Move 289 | . 289 Hop . | . . Pick Up 8 | . 8 Fast Attach 5 | . 5 Attach 3 | 2 1 Detach . | . . Swap 6 | . 6 Drop 11 | 4 7 Fire 88 | . 88 Melee . | . . Ram . | . . Kick . | . . Crush . | . . Escape Stasis . | . . Rewire . | . . Trap . | . . Miscellaneous . | . . Route ------- -11/Scrapyard -10/Materials (discovered 2 exits: [*Mat] / [*Min]) History --------- Turn | Location | Event 6 | -11/Scrapyard | Discovered new exit (range 0) 6 | -11/Scrapyard | Entered Materials 304 | -10/Materials | Build established: Mutant 384 | -10/Materials | Core integrity fell below 50% 408 | -10/Materials | Lost 4 parts (2p2n) 504 | -10/Materials | Discovered new exit (range 12) 546 | -10/Materials | Core integrity fell below 20% 598 | -10/Materials | Discovered new exit (range 8) 700 | -10/Materials | Destroyed by G-47 Trooper with Particle Gun Last Messages --------------- Downloading prototype IDs... Imp. Medium Laser Adv. Beam Cannon 00598_ EXIT=FOUND 00628_ Triggered Alarm Trap. 00628_ An alarm sounds. 00628_ ALERT: Alarm triggered, dispatching investigation squad. 00630_ Acquired Beam Cannon. 00640_ ALERT: Hostiles spotted, dispatching reinforcements to Terminal M008. 00642_ G-34 Mercenary destroyed. 00642_ Switching to secondary target: G-34 Mercenary. 00642_ U-05 Engineer lays Concrete. 00642_ K-01 Serf collects debris. 00652_ Dropped Wheel. 00652_ Dropped Com. Wheel. 00667_ G-34 Mercenary destroyed. 00669_ Acquired 47 matter. 00674_ Acquired Aluminum Leg. 00690_ G-34 Mercenary destroyed. Map ----- +----------------------------------------------------+ | | | | | | | | | | | | | | | | | | | | | | | | | | | | | ?????????????????????????????????????????????????? | | ??##############?????????????????????########????? | | ??# # #????????????????????# #????? | | ??# # """#????????????????????# #????? | | ??# """ # """#????????????????????#"" #????? | | ??# """ # """#????????????????????#"Y #????? | | ??# """ # """#????????????????????#"" ! #????? | | ??# # #????????????????????# =* #????? | | ??####+######+#############+#############+####???? | | ??# =%! %% #???? | | ??# < o #???? | | ??# * @ #???? | | ??####### ########+#### ############## #???? | | ?######## T#?# =%[ # #????????????# #???? | | ?# # ##?# # #????????????# ##### | | ?# # #??# # #????????????# % # | | ?# """" # #??# # +????????????# # | | ?# """" # #??# """ # #????????????# # | | ?# """" # #??# """"" # #????????????# # | | ?# # #??# """"" # #????????????##### # | | #####+### #??# """"" / #????????????????# # | | = #??# """ #g #????????????????# # | | =%!#############kg #????????????????# # | | / """* ##############???# # | | !/ """ [[ # % #???# # | | ! """ !!/ # """ """ #???# / | | ! ! + """ """ #???# * # | | !/ # """ """ #???# # | | """ """ ### # = | #???# # | | """ """ #?# ###+#######+##???# # | | """ """ #?# ##* # #????# # | | #?# ## """ # ###??# # | | #?# ## """ # #T#### # | | ""? """ "?# ^^ #### ## """ # # | | "?? """ T?# ^ #""" # %+ # | | ??? "?" "?# #" % # # # | +----------------------------------------------------+ Best States ------------- Heat Dissipation 25 Energy Generation 10 Energy Capacity 250 Matter Stores 300 Matter Capacity 300 Sight Range 16 Terrain Scan Density 10 Additional Mass Support 6 Evasion (%) 42 Recoil Reduction 2 Item Schematics ----------------- None Robot Schematics ------------------ None Fabricated ------------ Nothing Alien Tech Used ----------------- None Achievements -------------- None Challenges ------------ None Game ------ Seed CompactLongswordSuite Manual? 0 Play Time 00:08:58 Cumulative 517.4 hours Start 2021.11.28 @ 00:52:16 End 2021.11.28 @ 00:59:15 Sessions 1 Manual Loads 0 Difficulty Rogue Special Mode None Game No. 506 Rogue 506 Adventurer 0 Explorer 0 Win Type - Total 14 Types 9/1/3/1/0/0/0/0/0 Lore% 83 Gallery% 94 Achievement% 73 Wizard Run 0 Options --------- ASCII 0 Keyboard 0 Movement Mouse Keybinds 1 Fullscreen 2 Font 24/Smallcaps Map View 76x50 Tactical HUD 1 Map Filters NONE Filters NONE Steam 1 RUN: 316635f1-d260-4594-8b2c-23ee3284864c